bitfinex-derivatives/quotes_SOLF0:USTF0_20250416
["timestamp","ask_amount","ask_price","bid_price","bid_amount"]
[1744782719927,0.05794736,125.27,125.24,0.05206471]
[1744782720221,8.04144736,125.27,125.24,8.03706471]
[1744782720421,0.05794736,125.27,125.24,0.05206471]
[1744782720823,0.05794736,125.27,125.24,8.03706471]
[1744782721723,8.04144736,125.27,125.24,8.03706471]
[1744782722323,0.05794736,125.27,125.24,0.05206471]
[1744782723726,6.89165329,125.27,125.24,0.05206471]
[1744782723922,6.83370593,125.26,125.24,0.05206471]
[1744782724320,8.04154736,125.27,125.24,8.03726471]
[1744782724626,8.04154736,125.27,125.24,0.05206471]
[1744782724627,0.05794736,125.27,125.24,0.05206471]
[1744782724828,0.05794736,125.27,125.25,6.83370593]
[1744782725023,0.05794736,125.27,125.26,7.984]
[1744782725223,0.05794736,125.27,125.24,38.73206471]
[1744782725927,0.05794736,125.27,125.25,7.9845]
[1744782726528,6.83370593,125.26,125.24,0.05206471]
[1744782727028,14.81800593,125.26,125.24,0.05206471]
[1744782727625,14.81830593,125.25,125.24,0.05206471]
[1744782729430,6.83370593,125.26,125.24,0.05206471]
[1744782730131,14.81810593,125.26,125.24,0.05206471]
[1744782730635,7.9846,125.25,125.24,0.05206471]
[1744782731230,14.81790593,125.26,125.24,0.05206471]
[1744782731830,14.81830593,125.25,125.24,0.05206471]
[1744782732636,7.9865,125.23,125.2,38.68]
[1744782732837,14.82020593,125.23,125.2,38.68]
[1744782733138,7.9865,125.23,125.2,38.68]
[1744782733327,6.83370593,125.22,125.18,7.9887]
[1744782733637,6.83370593,125.2,125.17,362.0]
[1744782733837,6.89111557,125.21,125.19,0.05762623]
[1744782734036,14.82200593,125.2,125.19,0.05762623]
[1744782735137,7.9883,125.2,125.19,0.05762623]
[1744782737136,8.04490964,125.21,125.19,0.05762623]
[1744782737340,0.05740964,125.21,125.19,0.05762623]
[1744782738637,0.05740964,125.21,125.2,7.9878]
[1744782738842,4.7898,125.26,125.2,38.68]
[1744782739043,2.5173,125.28,125.2,38.68]
[1744782739243,7.9837,125.27,125.23,7.9858]
[1744782739741,7.983,125.28,125.24,7.9849]
[1744782739945,38.68,125.29,125.21,10.69206172]
[1744782740139,0.05900587,125.27,125.25,0.05886186]
[1744782740944,8.04280587,125.27,125.25,0.05886186]
[1744782742543,0.05900587,125.27,125.25,0.05886186]
[1744782743641,7.984,125.26,125.25,0.05886186]
[1744782747748,10.75106759,125.27,125.2,38.68]
[1744782747949,10.69206172,125.27,125.2,38.68]
[1744782748352,7.9856,125.24,125.2,46.6674]
[1744782748745,0.05946746,125.23,125.21,0.05148292]
[1744782749447,7.9865,125.22,125.21,0.05148292]
[1744782750248,8.04556746,125.23,125.21,0.05148292]
[1744782750752,7.9865,125.22,125.21,0.05148292]
[1744782752250,8.04566746,125.23,125.21,0.05148292]
[1744782753349,7.9865,125.22,125.21,0.05148292]
[1744782754356,0.05946746,125.23,125.21,0.05148292]
[1744782754846,8.04536746,125.23,125.21,0.05148292]
[1744782757052,0.05946746,125.23,125.21,0.05148292]
[1744782757257,0.05946746,125.23,125.21,8.03868292]
[1744782758855,0.05946746,125.23,125.22,7.9865]
[1744782761452,0.05946746,125.23,125.22,14.82445698]
[1744782761659,6.83795698,125.27,125.24,7.9849]
[1744782761871,6.83795698,125.28,125.24,7.9849]
[1744782762053,6.83795698,125.27,125.22,6.83795698]
[1744782762358,6.83795698,125.27,125.24,7.9852]
[1744782762554,6.83795698,125.28,125.23,6.83795698]
[1744782762760,6.83795698,125.28,125.24,6.83795698]
[1744782762957,0.05115635,125.27,125.24,6.89757032]
[1744782763558,0.05115635,125.27,125.25,7.9842]
[1744782765559,0.05115635,125.27,125.24,14.88247032]
[1744782766261,6.88911333,125.27,125.24,0.05961334]
[1744782766461,6.83795698,125.25,125.24,0.05961334]
[1744782766762,14.82255698,125.25,125.24,0.05961334]
[1744782772466,14.82225698,125.26,125.24,0.05961334]
[1744782772662,7.9843,125.26,125.24,0.05961334]
[1744782773568,14.82225698,125.26,125.24,0.05961334]
[1744782773963,7.9846,125.25,125.24,0.05961334]
[1744782777365,14.82225698,125.26,125.24,0.05961334]
[1744782781271,7.9843,125.26,125.24,0.05961334]
[1744782781471,6.88911333,125.27,125.24,0.05961334]
[1744782781674,0.05115635,125.27,125.24,0.05961334]
[1744782781971,0.05115635,125.27,125.24,6.89757032]
[1744782782266,0.05115635,125.27,125.25,7.9845]
[1744782782472,6.88911333,125.27,125.24,0.05961334]
[1744782782866,14.87281333,125.27,125.24,0.05961334]
[1744782783166,6.88911333,125.27,125.24,0.05961334]
[1744782783373,6.83795698,125.25,125.24,0.05961334]
[1744782783772,14.82255698,125.25,125.24,0.05961334]
[1744782785278,6.83795698,125.25,125.19,7.9879]
[1744782785476,6.83795698,125.23,125.19,7.9879]
[1744782785975,7.9866,125.22,125.19,7.9879]
[1744782786178,6.83795698,125.2,125.16,38.4]
[1744782786372,0.05406267,125.22,125.16,38.4]
[1744782786573,6.83795698,125.24,125.2,7.9878]
[1744782786778,0.05502087,125.2,125.19,6.83795698]
[1744782786981,7.9863,125.23,125.21,0.05294004]
[1744782787175,7.9863,125.23,125.19,6.83795698]
[1744782787375,8.0388364,125.23,125.19,14.82585698]
[1744782787575,8.0388364,125.23,125.17,2.3626]
[1744782787576,14.82445698,125.22,125.21,0.05582161]
[1744782788277,7.9865,125.22,125.21,0.05582161]
[1744782791880,8.0386364,125.23,125.21,0.05582161]
[1744782792086,0.0525364,125.23,125.21,0.05582161]
[1744782792985,7.9865,125.22,125.21,0.05582161]
[1744782799186,8.0387364,125.23,125.21,0.05582161]
[1744782802393,0.0525364,125.23,125.21,0.05582161]
[1744782802794,0.0525364,125.23,125.21,8.04282161]
[1744782803595,0.0525364,125.23,125.22,7.9865]
[1744782804595,2.4501,125.3,125.22,13.03581478]
[1744782804898,7.983,125.28,125.22,13.03581478]
[1744782805098,2.4501,125.3,125.25,7.9845]
[1744782805287,2.4501,125.3,125.22,13.03581478]
[1744782805288,10.68731478,125.31,125.22,13.03581478]
[1744782805495,10.68731478,125.31,125.23,2.487]
[1744782805694,0.05447589,125.28,125.25,8.04493875]
[1744782807300,0.05447589,125.28,125.26,7.9838]
[1744782807595,10.68731478,125.35,125.26,10.68731478]
[1744782807800,10.68731478,125.35,125.3,7.9811]
[1744782807995,10.3224,125.34,125.3,7.9811]
[1744782808191,2.3432,125.34,125.3,7.9811]
[1744782808496,7.9797,125.33,125.29,7.9819]
[1744782808701,2.3432,125.34,125.26,13.01361478]
[1744782808892,0.05831514,125.32,125.3,0.05203747]
[1744782810298,0.05831514,125.32,125.3,14.86075494]
[1744782811205,0.05831514,125.32,125.3,8.03343747]
[1744782811401,0.05831514,125.32,125.31,7.9808]
[1744782811902,7.9773,125.37,125.33,7.9795]
[1744782812402,7.978,125.36,125.32,7.98]
[1744782813103,0.05359654,125.35,125.33,0.0503845]
[1744782813299,10.66636828,125.37,125.33,0.0503845]
[1744782813498,0.05383472,125.35,125.33,0.0503845]
[1744782814202,7.9789,125.34,125.33,0.0503845]
[1744782815200,7.9805,125.32,125.28,38.4]
[1744782815405,10.66636828,125.35,125.28,38.4]
[1744782815600,45.7027,125.36,125.28,49.06636828]
[1744782815907,7.9786,125.35,125.31,7.9807]
[1744782816406,0.05569314,125.34,125.32,0.05089161]
[1744782816805,0.05569314,125.34,125.33,7.9795]
[1744782824710,0.05569314,125.34,125.32,56.95695989]
[1744782824905,0.05569314,125.34,125.32,38.31089161]
[1744782826109,0.05569314,125.34,125.32,46.29069161]
[1744782827308,8.03459314,125.34,125.32,46.29069161]
[1744782827511,0.05569314,125.34,125.32,46.29069161]
[1744782829712,0.05569314,125.34,125.32,8.03069161]
[1744782830006,8.03459314,125.34,125.32,0.05089161]
[1744782830213,0.05569314,125.34,125.32,0.05089161]
[1744782830511,0.05569314,125.34,125.32,8.03099161]
[1744782831715,0.05569314,125.34,125.33,7.9795]
[1744782833109,0.05569314,125.34,125.33,14.80236886]
[1744782833314,0.05569314,125.34,125.33,7.9795]
[1744782836420,0.05569314,125.34,125.32,45.11376047]
[1744782837322,0.05569314,125.34,125.33,7.9795]
[1744782838523,0.05569314,125.34,125.32,53.09386047]
[1744782841728,8.03459314,125.34,125.32,38.29089161]
[1744782842226,0.05569314,125.34,125.32,46.27089161]
[1744782842729,0.05569314,125.34,125.32,38.29089161]
[1744782843728,8.03469314,125.34,125.32,38.29089161]
[1744782844427,0.05569314,125.34,125.32,38.29089161]
[1744782845229,8.03469314,125.34,125.32,38.29089161]
[1744782847533,0.05569314,125.34,125.32,46.27089161]
[1744782848639,8.03479314,125.34,125.32,38.29089161]
[1744782849133,0.05569314,125.34,125.32,38.29089161]
[1744782849841,8.03469314,125.34,125.32,38.29089161]
[1744782850043,0.05569314,125.34,125.32,38.29089161]
[1744782850441,8.03479314,125.34,125.32,38.29089161]
[1744782850642,0.05569314,125.34,125.32,46.27099161]
[1744782850842,0.05569314,125.34,125.32,38.29089161]
[1744782851142,8.03469314,125.34,125.32,38.29089161]
[1744782851341,0.05569314,125.34,125.32,38.29089161]
[1744782852844,8.03489314,125.34,125.32,38.29089161]
[1744782853341,7.9795,125.33,125.32,0.05089161]
[1744782853543,6.82286886,125.33,125.28,38.1]
[1744782853843,6.82286886,125.31,125.28,38.1]
[1744782854043,7.9817,125.3,125.28,38.1]
[1744782854345,6.82286886,125.29,125.24,44.92286886]
[1744782854541,7.9828,125.28,125.24,44.92286886]
[1744782854747,0.06085284,125.28,125.25,0.05416302]
[1744782855048,0.06085284,125.28,125.25,8.03826302]
[1744782855748,0.06085284,125.28,125.25,6.87703188]
[1744782856349,0.06085284,125.28,125.26,7.9836]
[1744782856547,0.06085284,125.28,125.25,6.87703188]
[1744782856748,0.06085284,125.28,125.26,6.82286886]
[1744782857050,7.9803,125.32,125.27,6.82286886]
[1744782857349,7.9803,125.32,125.28,6.82286886]
[1744782857547,14.80316886,125.32,125.28,7.9824]
[1744782858150,0.05649354,125.31,125.29,0.0554255]
[1744782858950,8.03729354,125.31,125.29,0.0554255]
[1744782859246,6.8793624,125.31,125.29,0.0554255]
[1744782859747,7.9814,125.3,125.29,0.0554255]
[1744782859949,6.8793624,125.31,125.29,0.0554255]
[1744782860151,0.05649354,125.31,125.29,0.0554255]
[1744782861152,8.03749354,125.31,125.29,0.0554255]
[1744782862955,7.9814,125.3,125.29,0.0554255]
[1744782866753,14.80426886,125.3,125.29,0.0554255]
[1744782870557,0.05649354,125.31,125.29,0.0554255]
[1744782872059,8.03759354,125.31,125.29,0.0554255]
[1744782877653,0.05649354,125.31,125.29,8.0371255]
[1744782878759,0.05649354,125.31,125.3,7.9814]
[1744782879154,44.92286886,125.35,125.3,6.82286886]
[1744782880161,7.9792,125.34,125.31,7.9806]
[1744782880352,8.03689116,125.34,125.31,7.9806]
[1744782880657,8.03689116,125.34,125.31,8.03259507]
[1744782881959,7.9796,125.33,125.31,0.05199507]
[1744782882658,8.03689116,125.34,125.31,0.05199507]
[1744782883161,8.03689116,125.34,125.31,8.03279507]
[1744782883356,7.9797,125.33,125.31,0.05199507]
[1744782883564,6.88056002,125.34,125.31,0.05199507]
[1744782883860,6.82286886,125.33,125.31,0.05199507]
[1744782884063,6.88056002,125.34,125.31,0.05199507]
[1744782884763,7.9799,125.33,125.31,0.05199507]
[1744782884963,6.88056002,125.34,125.31,0.05199507]
[1744782885360,0.05769116,125.34,125.31,0.05199507]
[1744782885659,8.03689116,125.34,125.31,8.03249507]
[1744782885859,8.03689116,125.34,125.31,0.05199507]
[1744782885860,0.05769116,125.34,125.31,0.05199507]
[1744782886061,7.9796,125.33,125.31,0.05199507]
[1744782886262,0.05769116,125.34,125.31,0.05199507]
[1744782888366,0.05769116,125.34,125.32,6.82286886]
[1744782888768,0.05769116,125.34,125.33,7.9795]
[1744782888967,0.05769116,125.34,125.33,14.80236886]
[1744782889163,44.78286886,125.39,125.33,6.82286886]
[1744782889566,7.9767,125.38,125.35,7.9782]
[1744782889766,7.9767,125.38,125.33,6.82286886]
[1744782890366,0.05971436,125.37,125.34,8.03821506]
[1744782892071,0.05971436,125.37,125.35,7.9782]
[1744782892367,0.05971436,125.37,125.34,6.88258392]
[1744782892567,0.05971436,125.37,125.35,6.82286886]
[1744782892767,0.05971436,125.37,125.36,7.9776]
[1744782892970,0.05971436,125.37,125.36,14.80046886]
[1744782893566,0.05971436,125.37,125.36,7.9776]
[1744782894261,0.05971436,125.37,125.34,0.05971506]
[1744782894471,6.82286886,125.36,125.34,0.05971506]
[1744782894871,14.80116886,125.35,125.34,0.05971506]
[1744782895570,7.9783,125.35,125.34,0.05971506]
[1744782895771,0.05971436,125.37,125.34,0.05971506]
[1744782896071,6.82286886,125.36,125.34,0.05971506]
[1744782896370,14.80086886,125.36,125.34,0.05971506]
[1744782899274,14.80305945,125.36,125.34,0.05971506]
[1744782899475,7.9783,125.35,125.34,0.05971506]
[1744782901473,7.9783,125.35,125.32,37.96]
[1744782901474,14.80335945,125.35,125.32,37.96]
[1744782901679,6.82505945,125.35,125.32,37.96]
[1744782901980,6.82505945,125.36,125.32,37.96]
[1744782902179,0.05971436,125.37,125.32,44.78505945]
[1744782902681,8.03701436,125.37,125.33,0.06096199]
[1744782902874,6.82505945,125.35,125.33,0.06096199]
[1744782903682,14.80365945,125.35,125.33,0.06096199]
[1744782907181,7.9778,125.36,125.33,0.06096199]
[1744782908182,7.9778,125.36,125.33,8.04036199]
[1744782908882,7.9778,125.36,125.33,0.06096199]
[1744782910286,7.9783,125.35,125.33,0.06096199]
[1744782915089,7.9789,125.34,125.33,0.06096199]
[1744782915690,7.9785,125.35,125.33,0.06096199]
[1744782916891,7.9789,125.34,125.33,0.06096199]
[1744782917192,6.88477381,125.37,125.33,0.06096199]
[1744782917693,7.9777,125.36,125.33,0.06096199]
[1744782918291,6.88477381,125.37,125.33,0.06096199]
[1744782918593,7.9777,125.36,125.33,0.06096199]
[1744782919599,7.9783,125.35,125.33,0.06096199]
[1744782920600,7.978,125.36,125.33,0.06096199]
[1744782921293,7.978,125.36,125.33,8.04046199]
[1744782921799,7.9783,125.35,125.33,0.06096199]
[1744782922103,6.88477381,125.37,125.33,0.06096199]
[1744782923199,7.978,125.36,125.33,0.06096199]
[1744782924596,6.88477381,125.37,125.33,0.06096199]
[1744782924996,6.82505945,125.35,125.33,0.06096199]
[1744782925203,7.9789,125.34,125.33,0.06096199]
[1744782925502,6.82505945,125.35,125.33,0.06096199]
[1744782925702,10.3498,125.36,125.33,0.06096199]
[1744782926199,6.88477381,125.37,125.33,0.06096199]
[1744782926703,6.82505945,125.35,125.33,0.06096199]
[1744782927001,6.82505945,125.35,125.26,576.9212]
[1744782927298,6.82505945,125.3,125.27,7.9831]
[1744782928106,6.87658438,125.3,125.27,8.03864098]
[1744782928406,14.85808438,125.3,125.27,8.03864098]
[1744782929707,14.85808438,125.3,125.27,0.05554098]
[1744782929906,7.9822,125.29,125.27,0.05554098]
[1744782930107,6.87658438,125.3,125.27,0.05554098]
[1744782930406,14.85848438,125.3,125.27,0.05554098]
[1744782931609,7.9823,125.29,125.27,0.05554098]
[1744782933005,14.85828438,125.3,125.27,0.05554098]
[1744782933205,6.87658438,125.3,125.27,0.05554098]
[1744782933511,7.9824,125.29,125.27,0.05554098]
[1744782934313,7.9827,125.28,125.27,0.05554098]
[1744782934510,14.80775945,125.28,125.27,0.05554098]
[1744782934913,7.9844,125.26,125.22,14.81135945]
[1744782935213,2.3325,125.29,125.24,6.82505945]
[1744782935412,7.9828,125.28,125.24,14.80995945]
[1744782936114,0.05725356,125.27,125.25,0.05036655]
[1744782936412,0.05725356,125.27,125.25,8.03496655]
[1744782937810,0.05725356,125.27,125.25,0.05036655]
[1744782938314,8.04105356,125.27,125.25,0.05036655]
[1744782940615,0.05725356,125.27,125.26,6.82505945]
[1744782941816,0.05725356,125.27,125.26,14.80905945]
[1744782942015,6.82505945,125.31,125.26,6.82505945]
[1744782943115,8.04185665,125.3,125.27,7.9831]
[1744782943714,8.04185665,125.3,125.27,8.03747499]
[1744782945012,6.8853161,125.3,125.27,0.05437499]
[1744782945516,7.9824,125.29,125.27,0.05437499]
[1744782945715,14.80745945,125.29,125.27,0.05437499]
[1744782945914,6.82505945,125.29,125.27,0.05437499]
[1744782946114,6.82505945,125.28,125.27,0.05437499]
[1744782947219,14.80775945,125.28,125.27,0.05437499]
[1744782949921,7.9845,125.26,125.23,6.82505945]
[1744782950419,6.82505945,125.26,125.21,37.68]
[1744782950619,6.82505945,125.26,125.21,44.50505945]
[1744782950820,7.9851,125.25,125.21,44.50505945]
[1744782951018,7.9851,125.25,125.21,52.49155945]
[1744782951318,0.05141648,125.24,125.22,0.0503968]
[1744782951617,0.05141648,125.24,125.22,6.87545625]
[1744782952022,0.05141648,125.24,125.22,14.86155625]
[1744782953827,0.05141648,125.24,125.22,8.0364968]
[1744782954025,0.05141648,125.24,125.22,0.0503968]
[1744782955227,0.05141648,125.24,125.22,8.0367968]
[1744782956027,7.9859,125.23,125.22,0.0503968]
[1744782957725,0.05141648,125.24,125.22,0.0503968]
[1744782958528,0.05141648,125.24,125.22,8.0365968]
[1744782958923,0.05141648,125.24,125.22,0.0503968]
[1744782959119,0.05141648,125.24,125.23,14.81095945]
[1744782959829,4.901,125.3,125.26,7.9839]
[1744782960129,4.901,125.3,125.25,6.82505945]
[1744782960327,7.9827,125.28,125.25,14.80935945]
[1744782960826,6.82505945,125.29,125.25,0.0602518]
[1744782960827,6.82505945,125.26,125.25,0.0602518]
[1744782961031,6.82505945,125.26,125.19,581.30505945]
[1744782961423,6.82505945,125.26,125.21,6.82505945]
[1744782962129,0.05679316,125.25,125.22,0.0595788]
[1744782962632,0.05679316,125.25,125.22,8.0457788]
[1744782963331,0.05679316,125.25,125.22,0.0595788]
[1744782963835,0.05679316,125.25,125.22,8.0457788]
[1744782964135,0.05679316,125.25,125.22,0.0595788]
[1744782964929,0.05679316,125.25,125.23,7.9859]
[1744782965233,8.04149316,125.25,125.22,0.0595788]
[1744782966232,8.04149316,125.25,125.22,8.0457788]
[1744782968034,7.9854,125.24,125.22,0.0595788]
[1744782968535,0.05679316,125.25,125.22,0.0595788]
[1744782968832,8.04169316,125.25,125.22,8.0456788]
[1744782969334,0.05679316,125.25,125.22,0.0595788]
[1744782969535,7.9856,125.24,125.22,0.0595788]
[1744782969735,0.05679316,125.25,125.22,0.0595788]
[1744782969936,8.04179316,125.25,125.22,8.0459788]
[1744782971932,7.9859,125.23,125.22,0.0595788]
[1744782973037,7.9869,125.22,125.19,7.9881]
[1744782973234,6.82505945,125.23,125.18,37.68]
[1744782973434,6.82505945,125.23,125.19,14.81305945]
[1744782974143,0.05455746,125.22,125.2,0.0577282]
[1744782974343,0.05455746,125.22,125.2,8.0454282]
[1744782974946,0.05455746,125.22,125.21,7.9872]
[1744782975143,0.05455746,125.22,125.21,14.81225945]
[1744782976443,0.05455746,125.22,125.2,8.0453282]
[1744782976942,0.05455746,125.22,125.21,14.81225945]
[1744782980339,9.38165945,125.27,125.22,7.986]
[1744782981245,7.9849,125.25,125.22,7.986]
[1744782981443,7.9849,125.25,125.23,0.0531266]
[1744782981645,0.05577571,125.26,125.23,0.0531266]
[1744782982239,6.82505945,125.25,125.23,0.0531266]
[1744782982444,7.9853,125.24,125.23,0.0531266]
[1744782983246,0.05577571,125.26,125.23,0.0531266]
[1744782984143,8.04037571,125.26,125.23,0.0531266]
[1744782984651,127.3715829,125.36,125.25,6.82505945]
[1744782984851,127.3715829,125.36,125.27,6.82505945]
[1744782984852,2.335,125.33,125.27,6.82505945]
[1744782985053,2.335,125.33,125.29,6.82505945]
[1744782985750,7.9806,125.32,125.29,6.82505945]
[1744782986049,8.03795865,125.32,125.3,0.06081217]
[1744782988450,7.9808,125.31,125.3,0.06081217]
[1744782988747,14.80585945,125.31,125.3,0.06081217]
[1744782999861,8.03785865,125.32,125.3,0.06081217]
[1744783000063,0.05735865,125.32,125.3,0.06081217]
[1744783000258,0.05735865,125.32,125.3,6.88587162]
[1744783000453,0.05735865,125.32,125.3,14.86697162]
[1744783002762,0.05735865,125.32,125.31,7.9808]
[1744783003164,0.05735865,125.32,125.31,14.80585945]
[1744783005559,0.05735865,125.32,125.3,0.06081217]
[1744783006066,8.03755865,125.32,125.3,0.06081217]
[1744783006260,6.8824181,125.32,125.3,0.06081217]
[1744783006771,14.8629181,125.32,125.3,0.06081217]
[1744783007767,0.05735865,125.32,125.3,0.06081217]
[1744783008067,6.8824181,125.32,125.3,0.06081217]
[1744783008268,14.80585945,125.31,125.3,0.06081217]
[1744783009668,6.82505945,125.31,125.24,369.9849]
[1744783009971,6.82505945,125.26,125.22,6.82505945]
[1744783010467,6.82505945,125.26,125.24,7.9853]
[1744783011068,0.05229842,125.26,125.24,8.03943879]
[1744783013768,0.05229842,125.26,125.24,0.05413879]
[1744783014467,0.05229842,125.26,125.24,6.87919824]
[1744783015364,0.05229842,125.26,125.25,6.82505945]
[1744783015765,0.05229842,125.26,125.25,7.9846]
[1744783016060,0.05229842,125.26,125.25,14.80965945]
[1744783017171,0.05229842,125.26,125.25,7.9846]
[1744783017371,0.05229842,125.26,125.25,14.80965945]
[1744783017771,0.05229842,125.26,125.25,6.82505945]
[1744783017976,0.05229842,125.26,125.24,14.86419824]
[1744783018169,0.05229842,125.26,125.24,8.03913879]
[1744783020477,0.05229842,125.26,125.24,0.05413879]
[1744783020972,0.05229842,125.26,125.24,6.87919824]
[1744783021472,44.20505945,125.32,125.25,44.22505945]
[1744783021676,7.9813,125.31,125.27,14.80795945]
[1744783022277,7.9804,125.32,125.29,6.82505945]
[1744783022473,0.05802009,125.3,125.29,6.82505945]
[1744783022672,0.05802009,125.3,125.28,6.88458756]
[1744783023178,0.05802009,125.3,125.29,7.982]
[1744783023575,0.05802009,125.3,125.28,6.88458756]
[1744783023875,0.05802009,125.3,125.28,14.86678756]
[1744783026575,0.05802009,125.3,125.29,7.9821]
[1744783028179,0.05802009,125.3,125.29,14.80715945]
[1744783028478,41.5722,125.36,125.29,14.80715945]
[1744783028479,48.39725945,125.36,125.31,7.9808]
[1744783028680,48.39725945,125.36,125.31,14.80585945]
[1744783028879,7.9786,125.35,125.31,14.80585945]
[1744783029376,48.39725945,125.36,125.32,7.98]
[1744783029581,0.06018731,125.34,125.32,14.85556785]
[1744783029882,0.06018731,125.34,125.32,6.87556785]
[1744783030180,0.06018731,125.34,125.32,14.85546785]
[1744783031182,0.06018731,125.34,125.32,6.87556785]
[1744783031380,0.06018731,125.34,125.33,6.82505945]
[1744783031585,6.82505945,125.41,125.33,44.06505945]
[1744783031780,6.82505945,125.41,125.36,14.80265945]
[1744783032083,7.9757,125.4,125.36,14.80265945]
[1744783032781,7.9757,125.4,125.37,0.05512419]
[1744783032782,0.05021213,125.39,125.37,0.05512419]
[1744783032976,8.02601213,125.39,125.37,0.05512419]
[1744783034482,0.05021213,125.39,125.37,0.05512419]
[1744783038792,0.05021213,125.39,125.37,8.03182419]
[1744783039000,0.05021213,125.39,125.38,6.82505945]
[1744783041699,0.05021213,125.39,125.38,14.80135945]
[1744783041898,7.9741,125.42,125.38,6.82505945]
[1744783042998,0.05106996,125.41,125.39,7.9757]
[1744783044202,0.05106996,125.41,125.38,14.80105945]
[1744783045105,0.05106996,125.41,125.39,7.9757]
[1744783045405,6.82505945,125.4,125.37,0.05512419]
[1744783045606,6.82505945,125.38,125.31,12.0995]
[1744783045803,6.82505945,125.36,125.32,6.82505945]
[1744783046004,11.11785945,125.39,125.34,6.82505945]
[1744783046809,0.05049115,125.38,125.36,6.82505945]
[1744783047104,14.96092396,125.44,125.36,7.9771]
[1744783047299,0.05683248,125.38,125.36,0.05184076]
[1744783047496,14.96092396,125.44,125.39,0.05909028]
[1744783047696,7.9751,125.4,125.35,18.63192396]
[1744783048202,8.02873485,125.39,125.36,0.05882757]
[1744783048406,0.05283485,125.39,125.34,7.9786]
[1744783048602,0.05283485,125.39,125.36,0.05939633]
[1744783049308,4.41543485,125.39,125.36,0.05939633]
[1744783050209,7.977,125.37,125.36,0.05939633]
[1744783053510,6.44243485,125.39,125.36,0.05939633]
[1744783054109,7.977,125.37,125.36,0.05939633]
[1744783057318,7.9767,125.38,125.36,0.05939633]
[1744783058419,7.977,125.37,125.36,0.05939633]
[1744783060415,7.977,125.37,125.31,14.77322396]
[1744783060416,7.9789,125.34,125.29,947.29412396]
[1744783060622,7.9789,125.34,125.3,7.9811]
[1744783061219,7.9795,125.33,125.29,619.7218]
[1744783061624,0.05121811,125.32,125.3,0.05925884]
[1744783061923,0.05121811,125.32,125.3,8.04055884]
[1744783063325,8.03141811,125.32,125.3,8.04055884]
[1744783063526,0.05121811,125.32,125.3,0.05925884]
[1744783064326,0.05121811,125.32,125.3,8.04065884]
[1744783066227,0.05121811,125.32,125.31,7.9808]
[1744783067031,6.3896,125.39,125.34,7.9787]
[1744783067226,6.3896,125.39,125.31,14.97272396]
[1744783067527,7.9773,125.37,125.31,14.97272396]
[1744783068228,0.05276399,125.35,125.34,7.9788]
[1744783070618,25.3012071,125.47,125.34,10.65412396]
[1744783070826,17.05192396,125.46,125.36,10.65412396]
[1744783071027,17.05192396,125.46,125.37,37.12]
[1744783071525,7.9733,125.43,125.39,7.9752]
[1744783071733,0.05751552,125.42,125.4,0.0581161]
[1744783072725,0.05751552,125.42,125.4,8.0329161]
[1744783073828,0.05751552,125.42,125.41,7.9744]
[1744783074530,0.05751552,125.42,125.4,0.0581161]
[1744783075132,0.05751552,125.42,125.4,8.0329161]
[1744783076934,0.05751552,125.42,125.4,0.0581161]
[1744783080934,8.03131552,125.42,125.4,0.0581161]
[1744783082437,7.9744,125.41,125.4,0.0581161]
[1744783085236,0.05751552,125.42,125.4,0.0581161]
[1744783086043,8.03151552,125.42,125.4,0.0581161]
[1744783087845,7.9744,125.41,125.4,0.0581161]
[1744783091142,14.79375254,125.41,125.4,0.0581161]
[1744783094053,7.9753,125.4,125.37,37.12]
[1744783094253,6.81935254,125.39,125.33,39.1676]
[1744783094552,6.81935254,125.39,125.34,6.81935254]
[1744783094755,7.9766,125.38,125.34,14.79775254]
[1744783095253,0.05653405,125.37,125.35,8.02898414]
[1744783098154,0.05653405,125.37,125.36,14.79695254]
[1744783098347,6.81935254,125.42,125.36,6.81935254]
[1744783098551,6.81935254,125.42,125.37,6.81935254]
[1744783098753,7.9754,125.4,125.37,14.79595254]
[1744783099352,8.02694069,125.4,125.37,14.85552006]
[1744783101158,7.9757,125.39,125.37,0.05956752]
[1744783101452,0.05154069,125.4,125.37,0.05956752]
[1744783101756,8.02694069,125.4,125.37,8.03646752]
[1744783102557,0.05154069,125.4,125.38,7.9762]
[1744783103352,8.02664069,125.4,125.37,6.87892006]
[1744783103558,8.02664069,125.4,125.37,14.85562006]
[1744783105256,0.05154069,125.4,125.37,14.85562006]
[1744783105858,8.02674069,125.4,125.37,14.85562006]
[1744783106458,7.9757,125.39,125.37,6.87892006]
[1744783106654,6.81935254,125.39,125.37,0.05956752]
[1744783107160,7.9762,125.39,125.37,0.05956752]
[1744783109462,6.87089323,125.4,125.37,0.05956752]
[1744783109960,7.9761,125.39,125.37,0.05956752]
[1744783112362,0.05154069,125.4,125.38,14.79565254]
[1744783115259,0.05154069,125.4,125.37,0.05956752]